fUSD/lending_fUSD_20250823
["ID","MTS","AMOUNT","RATE_DAILY","PERIOD"]
[381013283,1755943844872,-400.0,0.00013698,2]
[381013284,1755943844882,-400.0,0.00013698,2]
[381013285,1755943844891,-400.0,0.00013698,2]
[381013286,1755943844902,-786.29,0.00013698,2]
[381013287,1755943844912,-498.2,0.00013698,2]
[381013288,1755943844926,-400.0,0.00013698,2]
[381013289,1755943844942,-507.99,0.00013698,2]
[381013290,1755943844958,-400.0,0.00013698,2]
[381013291,1755943844967,-400.0,0.00013698,2]
[381013292,1755943844976,-400.0,0.00013698,2]
[381013293,1755943844986,-400.0,0.00013698,2]
[381013294,1755943844995,-489.08,0.00013698,2]
[381013295,1755943845007,-593.44,0.00013698,2]
[381013296,1755943845017,-401.63033676,0.00013698,2]
[381013297,1755943845027,-400.0,0.00013698,2]
[381013298,1755943845037,-400.0,0.00013698,2]
[381013299,1755943845047,-550.9,0.00013698,2]
[381013300,1755943845057,-400.0,0.00013698,2]
[381013301,1755943845067,-411.6550931,0.00013698,2]
[381013302,1755943845077,-400.0,0.00013698,2]
[381013303,1755943845088,-400.0,0.00013698,2]
[381013304,1755943845100,-660.92,0.00013698,2]
[381013305,1755943845110,-948.76,0.00013698,2]
[381013306,1755943845120,-400.0,0.00013698,2]
[381013307,1755943845130,-400.0,0.00013698,2]
[381013308,1755943845151,-400.0,0.00013698,2]
[381013309,1755943845161,-400.96358392,0.00013698,2]
[381013310,1755943845170,-552.86,0.00013698,2]
[381013311,1755943845184,-375.24743704,0.00013698,2]
[381013312,1755943845193,-400.0,0.00013698,2]
[381013313,1755943845202,-185.26698282,0.00013698,2]
[381013314,1755943845212,-520.4,0.00013698,2]
[381013315,1755943845222,-269.000353,0.00013698,2]
[381013316,1755943845232,-151.0,0.00013698,2]
[381013317,1755943845241,-400.0,0.00013698,2]
[381013318,1755943845251,-434.52,0.00013698,2]
[381013319,1755943845262,-400.0,0.00013698,2]
[381013320,1755943845271,-400.0,0.00013698,2]
[381013321,1755943845280,-400.0,0.00013698,2]
[381013322,1755943845290,-674.98,0.00013698,2]
[381013323,1755943845299,-652.1,0.00013698,2]
[381013324,1755943845309,-400.0,0.00013698,2]
[381013325,1755943845318,-400.0,0.00013698,2]
[381013326,1755943845327,-400.0,0.00013698,2]
[381013327,1755943845337,-730.12,0.00013698,2]
[381013328,1755943845348,-458.82,0.00013698,2]
[381013329,1755943845358,-680.97,0.00013698,2]
[381013330,1755943845367,-400.0,0.00013698,2]
[381013331,1755943845380,-616.16,0.00013698,2]
[381013332,1755943845390,-400.0,0.00013698,2]
[381013333,1755943845400,-651.08,0.00013698,2]
[381013334,1755943845410,-400.0,0.00013698,2]
[381013335,1755943845419,-400.0,0.00013698,2]
[381013336,1755943845429,-615.2,0.00013698,2]
[381013337,1755943845439,-400.0,0.00013698,2]
[381013338,1755943845448,-581.77,0.00013698,2]
[381013339,1755943845458,-2540.96,0.00013698,2]
[381013340,1755943845468,-200.0,0.00013698,2]
[381013341,1755943845477,-717.13,0.00013698,2]
[381013342,1755943845487,-400.0,0.00013698,2]
[381013343,1755943845495,-692.23,0.00013698,2]
[381013344,1755943845505,-499.57,0.00013698,2]
[381013345,1755943845516,-644.22,0.00013698,2]
[381013346,1755943845526,-400.0,0.00013698,2]
[381013347,1755943845537,-400.0,0.00013698,2]
[381013348,1755943845546,-409.51,0.00013698,2]
[381013349,1755943845556,-765.72,0.00013698,2]
[381013350,1755943845565,-536.79,0.00013698,2]
[381013351,1755943845574,-400.0,0.00013698,2]
[381013352,1755943845584,-749.74,0.00013698,2]
[381013353,1755943845593,-400.0,0.00013698,2]
[381013354,1755943845603,-493.88,0.00013698,2]
[381013355,1755943845612,-401.16901348,0.00013698,2]
[381013356,1755943845622,-400.0,0.00013698,2]
[381013357,1755943845631,-447.17527132,0.00013698,2]
[381013358,1755943845640,-400.0,0.00013698,2]
[381013359,1755943845650,-522.23,0.00013698,2]
[381013360,1755943845660,-400.0,0.00013698,2]
[381013361,1755943845670,-624.7,0.00013698,2]
[381013362,1755943845679,-400.0,0.00013698,2]
[381013363,1755943845689,-570.27,0.00013698,2]
[381013364,1755943845699,-898.11,0.00013698,2]
[381013365,1755943845710,-685.96,0.00013698,2]
[381013366,1755943845720,-400.0,0.00013698,2]
[381013367,1755943845730,-400.0,0.00013698,2]
[381013368,1755943845739,-400.0,0.00013698,2]
[381013369,1755943845749,-400.0,0.00013698,2]
[381013370,1755943845760,-400.0,0.00013698,2]
[381013371,1755943845771,-496.56,0.00013698,2]
[381013372,1755943845781,-400.0,0.00013698,2]
[381013373,1755943845790,-400.0,0.00013698,2]
[381013374,1755943845800,-400.0,0.00013698,2]
[381013375,1755943845811,-400.0,0.00013698,2]
[381013376,1755943845821,-400.0,0.00013698,2]
[381013377,1755943845831,-400.0,0.00013698,2]
[381013378,1755943845840,-400.0,0.00013698,2]
[381013379,1755943845850,-400.0,0.00013698,2]
[381013380,1755943845860,-466.97,0.00013698,2]
[381013381,1755943845869,-612.58,0.00013698,2]
[381013382,1755943845879,-487.11428239,0.00013698,2]
[381013383,1755943845889,-773.22,0.00013698,2]
[381013384,1755943845898,-400.0,0.00013698,2]
[381013385,1755943845909,-400.0,0.00013698,2]
[381013386,1755943845918,-400.0,0.00013698,2]
[381013387,1755943845928,-400.0,0.00013698,2]
[381013388,1755943845937,-468.23,0.00013698,2]
[381013389,1755943845946,-600.33,0.00013698,2]
[381013390,1755943845956,-400.0,0.00013698,2]
[381013391,1755943845965,-400.0,0.00013698,2]
[381013392,1755943845974,-400.0,0.00013698,2]
[381013393,1755943845984,-151.0,0.00013698,2]
[381013394,1755943845993,-220.620678,0.00013698,2]
[381013395,1755943846003,-478.58,0.00013698,2]
[381013396,1755943846012,-400.0,0.00013698,2]
[381013397,1755943846021,-400.0,0.00013698,2]
[381013398,1755943846031,-689.48,0.00013698,2]
[381013399,1755943846040,-557.27,0.00013698,2]
[381013400,1755943846049,-173.28223163,0.00013698,2]
[381013401,1755943846059,-552.81,0.00013698,2]
[381013402,1755943846068,-400.0,0.00013698,2]
[381013403,1755943846079,-602.11,0.00013698,2]
[381013404,1755943846090,-892.62,0.00013698,2]
[381013405,1755943846099,-424.74,0.00013698,2]
[381013406,1755943846108,-634.11,0.00013698,2]
[381013407,1755943846118,-400.0,0.00013698,2]
[381013408,1755943846129,-400.0,0.00013698,2]
[381013409,1755943846138,-400.0,0.00013698,2]
[381013410,1755943846147,-517.99,0.00013698,2]
[381013411,1755943846158,-772.01,0.00013698,2]
[381013412,1755943846167,-674.58,0.00013698,2]
[381013413,1755943846178,-400.0,0.00013698,2]
[381013414,1755943846189,-538.01,0.00013698,2]
[381013415,1755943846199,-400.0,0.00013698,2]
[381013416,1755943846208,-515.81,0.00013698,2]
[381013417,1755943846217,-400.0,0.00013698,2]
[381013418,1755943846229,-400.0,0.00013698,2]
[381013419,1755943846239,-1742.76,0.00013698,2]
[381013420,1755943846248,-487.59,0.00013698,2]
[381013421,1755943846259,-400.0,0.00013698,2]
[381013422,1755943846268,-400.0,0.00013698,2]
[381013423,1755943846277,-531.07,0.00013698,2]
[381013424,1755943846287,-445.39,0.00013698,2]
[381013425,1755943846297,-400.0,0.00013698,2]
[381013426,1755943846306,-402.92997794,0.00013698,2]
[381013427,1755943846315,-400.0,0.00013698,2]
[381013428,1755943846324,-538.75,0.00013698,2]
[381013429,1755943846334,-400.0,0.00013698,2]
[381013430,1755943846343,-484.41,0.00013698,2]
[381013431,1755943846356,-519.3,0.00013698,2]
[381013432,1755943846365,-400.0,0.00013698,2]
[381013433,1755943846374,-456.02,0.00013698,2]
[381013434,1755943846383,-565.94,0.00013698,2]
[381013435,1755943846393,-2651.85,0.00013698,2]
[381013436,1755943846402,-400.0,0.00013698,2]
[381013437,1755943846412,-522.96,0.00013698,2]
[381013438,1755943846421,-400.0,0.00013698,2]
[381013439,1755943846430,-400.0,0.00013698,2]
[381013440,1755943846440,-490.93,0.00013698,2]
[381013441,1755943846449,-828.78,0.00013698,2]
[381013442,1755943846458,-852.8,0.00013698,2]
[381013443,1755943846467,-400.0,0.00013698,2]
[381013445,1755943846477,-855.93,0.00013698,2]
[381013447,1755943846486,-400.0,0.00013698,2]
[381013448,1755943846495,-449.09,0.00013698,2]
[381013449,1755943846505,-400.0,0.00013698,2]
[381013450,1755943846514,-607.4,0.00013698,2]
[381013451,1755943846524,-400.0,0.00013698,2]
[381013452,1755943846533,-405.68,0.00013698,2]
[381013453,1755943846543,-400.0,0.00013698,2]
[381013454,1755943846553,-407.69,0.00013698,2]
[381013455,1755943846562,-400.0,0.00013698,2]
[381013456,1755943846571,-558.91,0.00013698,2]
[381013457,1755943846581,-551.53,0.00013698,2]
[381013458,1755943846590,-409.73,0.00013698,2]
[381013459,1755943846600,-502.57552503,0.00013698,2]
[381013460,1755943846609,-517.01,0.00013698,2]
[381013461,1755943846619,-564.87,0.00013698,2]
[381013462,1755943846628,-400.0,0.00013698,2]
[381013464,1755943846638,-508.03,0.00013698,2]
[381013466,1755943846647,-400.0,0.00013698,2]
[381013468,1755943846656,-400.97,0.00013698,2]
[381013470,1755943846666,-400.0,0.00013698,2]
[381013472,1755943846675,-400.0,0.00013698,2]
[381013474,1755943846684,-400.0,0.00013698,2]
[381013476,1755943846694,-921.81,0.00013698,2]
[381013478,1755943846703,-685.63,0.00013698,2]
[381013480,1755943846713,-402.92279521,0.00013698,2]
[381013482,1755943846722,-509.55,0.00013698,2]
[381013484,1755943846732,-400.0,0.00013698,2]
[381013486,1755943846741,-649.03,0.00013698,2]
[381013488,1755943846751,-400.0,0.00013698,2]
[381013490,1755943846760,-400.0,0.00013698,2]
[381013492,1755943846769,-400.0,0.00013698,2]
[381013494,1755943846778,-400.0,0.00013698,2]
[381013496,1755943846788,-400.0,0.00013698,2]
[381013498,1755943846797,-400.0,0.00013698,2]
[381013500,1755943846806,-400.0,0.00013698,2]
[381013501,1755943846817,-400.0,0.00013698,2]
[381013502,1755943846826,-448.57,0.00013698,2]
[381013503,1755943846836,-815.68,0.00013698,2]
[381013504,1755943846845,-765.15,0.00013698,2]
[381013505,1755943846855,-400.0,0.00013698,2]
[381013506,1755943846865,-781.6,0.00013698,2]
[381013507,1755943846874,-402.68026936,0.00013698,2]
[381013508,1755943846883,-751.09,0.00013698,2]
[381013509,1755943846893,-750.61,0.00013698,2]
[381013510,1755943846902,-400.0,0.00013698,2]
[381013511,1755943846912,-400.0,0.00013698,2]
[381013512,1755943846921,-241.54089553,0.00013698,2]
[381013513,1755943846930,-810.79,0.00013698,2]
[381013514,1755943846939,-401.28128321,0.00013698,2]
[381013515,1755943846948,-400.0,0.00013698,2]
[381013516,1755943846958,-400.0,0.00013698,2]
[381013517,1755943846967,-751.49,0.00013698,2]
[381013518,1755943846976,-400.0,0.00013698,2]
[381013519,1755943846985,-727.85,0.00013698,2]
[381013520,1755943846994,-607.0,0.00013698,2]
[381013521,1755943847003,-400.0,0.00013698,2]
[381013522,1755943847012,-400.0,0.00013698,2]
[381013523,1755943847022,-400.0,0.00013698,2]
[381013524,1755943847031,-402.27000596,0.00013698,2]
[381013525,1755943847040,-504.82,0.00013698,2]
[381013526,1755943847049,-450.92,0.00013698,2]
[381013527,1755943847058,-400.0,0.00013698,2]
[381013528,1755943847067,-1097.34,0.00013698,2]
[381013529,1755943847076,-400.0,0.00013698,2]
[381013530,1755943847085,-400.0,0.00013698,2]
[381013531,1755943847094,-400.0,0.00013698,2]
[381013532,1755943847103,-400.0,0.00013698,2]
[381013533,1755943847113,-400.0,0.00013698,2]
[381013534,1755943847122,-400.0,0.00013698,2]
[381013535,1755943847133,-530.54,0.00013698,2]
[381013536,1755943847143,-404.64,0.00013698,2]
[381013537,1755943847153,-400.0,0.00013698,2]
[381013538,1755943847163,-400.0,0.00013698,2]
[381013539,1755943847172,-402.00173781,0.00013698,2]
[381013540,1755943847185,-408.09172711,0.00013698,2]
[381013541,1755943847195,-400.0,0.00013698,2]
[381013542,1755943847204,-400.0,0.00013698,2]
[381013543,1755943847454,-703.49,0.00013698,2]
[381013544,1755943847465,-527.66,0.00013698,2]
[381013545,1755943847475,-489.55,0.00013698,2]
[381013546,1755943847484,-406.58,0.00013698,2]
[381013547,1755943847494,-400.0,0.00013698,2]
[381013548,1755943847504,-400.0,0.00013698,2]
[381013549,1755943847514,-403.03341983,0.00013698,2]
[381013550,1755943847524,-400.0,0.00013698,2]
[381013551,1755943847533,-400.0,0.00013698,2]
[381013552,1755943847543,-427.71,0.00013698,2]
[381013553,1755943847555,-849.04,0.00013698,2]
[381013554,1755943847565,-503.48,0.00013698,2]
[381013555,1755943847574,-400.0,0.00013698,2]
[381013556,1755943847584,-400.0,0.00013698,2]
[381013557,1755943847594,-428.93,0.00013698,2]
[381013558,1755943847604,-151.0,0.00013698,2]
[381013559,1755943847613,-484.13,0.00013698,2]
[381013560,1755943847622,-408.1,0.00013698,2]
[381013561,1755943847632,-151.0,0.00013698,2]
[381013562,1755943847642,-151.0,0.00013698,2]
[381013563,1755943847651,-151.0,0.00013698,2]
[381013564,1755943847661,-151.0,0.00013698,2]
[381013565,1755943847671,-653.56,0.00013698,2]
[381013566,1755943847681,-400.0,0.00013698,2]
[381013567,1755943847690,-587.49,0.00013698,2]
[381013568,1755943847700,-151.0,0.00013698,2]
[381013569,1755943847710,-699.51,0.00013698,2]
[381013570,1755943847720,-151.0,0.00013698,2]
[381013571,1755943847729,-400.0,0.00013698,2]
[381013572,1755943847740,-400.0,0.00013698,2]
[381013573,1755943847749,-508.7,0.00013698,2]
[381013574,1755943847761,-400.0,0.00013698,2]
[381013575,1755943847770,-537.37,0.00013698,2]
[381013576,1755943847780,-229.717209,0.00013698,2]
[381013577,1755943847790,-670.86,0.00013698,2]
[381013578,1755943847799,-720.76,0.00013698,2]
[381013579,1755943847809,-424.85,0.00013698,2]
[381013580,1755943847819,-498.52,0.00013698,2]
[381013581,1755943847829,-400.0,0.00013698,2]
[381013582,1755943847838,-400.0,0.00013698,2]
[381013583,1755943847848,-839.93,0.00013698,2]
[381013584,1755943847857,-400.0,0.00013698,2]
[381013585,1755943847867,-400.0,0.00013698,2]
[381013586,1755943847877,-400.0,0.00013698,2]
[381013587,1755943847887,-400.0,0.00013698,2]
[381013588,1755943847897,-972.16,0.00013698,2]
[381013589,1755943847907,-400.0,0.00013698,2]
[381013590,1755943847916,-400.0,0.00013698,2]
[381013591,1755943847926,-984.29,0.00013698,2]
[381013592,1755943847936,-400.0,0.00013698,2]
[381013593,1755943847946,-521.36,0.00013698,2]
[381013594,1755943847956,-400.0,0.00013698,2]
[381013595,1755943847966,-601.66,0.00013698,2]
[381013596,1755943847976,-702.22,0.00013698,2]
[381013597,1755943847985,-927.67,0.00013698,2]
[381013598,1755943847996,-433.94,0.00013698,2]
[381013599,1755943848006,-400.0,0.00013698,2]
[381013600,1755943848016,-415.45,0.00013698,2]
[381013601,1755943848025,-400.0,0.00013698,2]
[381013602,1755943848035,-642.28,0.00013698,2]
[381013603,1755943848046,-400.0,0.00013698,2]
[381013604,1755943848057,-400.0,0.00013698,2]
[381013605,1755943848067,-721.68,0.00013698,2]
[381013606,1755943848077,-325.47612863,0.00013698,2]
[381013607,1755943848896,-74.52387137,0.00013698,2]
[381013608,1755943848907,-969.84,0.00013698,2]
[381013609,1755943848917,-400.0,0.00013698,2]
[381013610,1755943848927,-1500.59,0.00013698,2]
[381013611,1755943848937,-400.0,0.00013698,2]
[381013612,1755943848947,-205.00667564,0.00013698,2]
[381013613,1755943850392,-617.90332436,0.00013698,2]
[381013614,1755943850402,-12336.73,0.00013698,2]
[381013615,1755943850412,-400.0,0.00013698,2]
[381013616,1755943850422,-400.0,0.00013698,2]
[381013617,1755943850431,-439.59,0.00013698,2]
[381013618,1755943850440,-239.37466564,0.00013698,2]
[381013619,1755943850451,-160.62533436,0.00013698,2]
[381013620,1755943850461,-659.81,0.00013698,2]
[381013621,1755943850471,-501.68538314,0.00013698,2]
[381013622,1755943850483,-245.35461686,0.00013698,2]
[381013623,1755943850494,-588.85,0.00013698,2]
[381013624,1755943850504,-400.0,0.00013698,2]
[381013625,1755943850515,-998.89,0.00013698,2]
[381013626,1755943850525,-1035.2,0.00013698,2]
[381013627,1755943850535,-780.22,0.00013698,2]
[381013628,1755943850545,-400.0,0.00013698,2]
[381013629,1755943850555,-400.0,0.00013698,2]
[381013630,1755943850565,-396.60116212,0.00013698,2]
[381013631,1755943851520,-1080.36345,0.00012695,2]
[381013632,1755943851533,-92.63655,0.00012695,2]
[381013633,1755943851544,-400.0,0.00013698,2]
[381013634,1755943851554,-400.0,0.00013698,2]
[381013635,1755943851565,-582.38,0.00013698,2]
[381013636,1755943851575,-745.13,0.00013698,2]
[381013637,1755943851585,-872.77,0.00013698,2]
[381013638,1755943851595,-2113.98,0.00013698,2]
[381013639,1755943851609,-605.54,0.00013698,2]
[381013640,1755943851623,-400.0,0.00013698,2]
[381013641,1755943851636,-1011.06,0.00013698,2]
[381013642,1755943851648,-400.0,0.00013698,2]
[381013643,1755943851661,-400.0,0.00013698,2]
[381013644,1755943851675,-551.87,0.00013698,2]
[381013645,1755943851690,-400.0,0.00013698,2]
[381013646,1755943851705,-649.12,0.00013698,2]
[381013647,1755943851718,-600.36,0.00013698,2]
[381013648,1755943851731,-1069.11,0.00013698,2]
[381013649,1755943851744,-583.16,0.00013698,2]
[381013650,1755943851758,-400.85106037,0.00013698,2]
[381013651,1755943851772,-400.0,0.00013698,2]
[381013652,1755943851785,-400.0,0.00013698,2]
[381013653,1755943851799,-716.85,0.00013698,2]
[381013654,1755943851813,-513.57,0.00013698,2]
[381013655,1755943851828,-10128.81,0.00013698,2]
[381013656,1755943851842,-534.9,0.00013698,2]
[381013657,1755943851855,-547.29077433,0.00013698,2]
[381013658,1755943851869,-593.04,0.00013698,2]
[381013659,1755943851883,-432.34,0.00013698,2]
[381013660,1755943851897,-401.77148148,0.00013698,2]
[381013661,1755943851911,-400.0,0.00013698,2]
[381013662,1755943851924,-400.0,0.00013698,2]
[381013663,1755943851936,-1439.44,0.00013698,2]
[381013664,1755943851949,-400.0,0.00013698,2]
[381013665,1755943851964,-446.44,0.00013698,2]
[381013666,1755943851975,-400.0,0.00013698,2]
[381013667,1755943851986,-400.0,0.00013698,2]
[381013668,1755943851999,-674.7,0.00013698,2]
[381013669,1755943852015,-420.6,0.00013698,2]
[381013670,1755943852026,-514.33,0.00013698,2]
[381013671,1755943852038,-965.67,0.00013698,2]
[381013672,1755943852052,-402.823395,0.00013698,2]
[381013673,1755943852073,-400.0,0.00013698,2]
[381013674,1755943852085,-400.0,0.00013698,2]
[381013675,1755943852098,-880.21,0.00013698,2]
[381013676,1755943852111,-151.0,0.00013698,2]
[381013677,1755943852123,-400.0,0.00013698,2]
[381013678,1755943852135,-1120.03,0.00013698,2]
[381013679,1755943852148,-151.0,0.00013698,2]
[381013680,1755943852162,-614.73,0.00013698,2]
[381013681,1755943852175,-151.0,0.00013698,2]
[381013682,1755943852190,-818.19,0.00013698,2]
[381013683,1755943852203,-400.0,0.00013698,2]
[381013684,1755943852215,-453.22,0.00013698,2]
[381013685,1755943852229,-1015.56,0.00013698,2]
[381013686,1755943852242,-596.33,0.00013698,2]
[381013687,1755943852255,-400.0,0.00013698,2]
[381013688,1755943852268,-507.12,0.00013698,2]
[381013689,1755943852280,-400.0,0.00013698,2]
[381013690,1755943852292,-911.56,0.00013698,2]
[381013691,1755943852304,-400.0,0.00013698,2]
[381013692,1755943852317,-449.44,0.00013698,2]
[381013693,1755943852330,-98.05428076,0.00013698,2]
[381013694,1755943852347,-773.20571924,0.00013698,2]
[381013695,1755943852360,-385.69428076,0.00013698,2]
[381013696,1755943852382,-14.30571924,0.00013698,2]
[381013697,1755943852395,-252.88879068,0.00013698,2]
[381013698,1755943852412,-147.11120932,0.00013698,2]
[381013699,1755943852424,-693.62,0.00013698,2]
[381013700,1755943852438,-400.0,0.00013698,2]
[381013701,1755943852451,-401.47512859,0.00013698,2]
[381013702,1755943852464,-400.0,0.00013698,2]
[381013703,1755943852477,-544.42,0.00013698,2]
[381013704,1755943852490,-453.37366209,0.00013698,2]
[381013705,1755943852543,-1198.20633791,0.00013698,2]
[381013706,1755943852556,-400.0,0.00013698,2]
[381013707,1755943852568,-1471.98,0.00013698,2]
[381013708,1755943852581,-400.0,0.00013698,2]
[381013709,1755943852593,-501.31,0.00013698,2]
[381013710,1755943852606,-408.01,0.00013698,2]
[381013711,1755943852619,-400.0,0.00013698,2]
[381013712,1755943852631,-400.0,0.00013698,2]
[381013713,1755943852645,-400.0,0.00013698,2]
[381013714,1755943852660,-966.43,0.00013698,2]
[381013715,1755943852674,-657.02,0.00013698,2]
[381013716,1755943852686,-590.16,0.00013698,2]
[381013717,1755943852699,-402.25886219,0.00013698,2]
[381013718,1755943852712,-400.0,0.00013698,2]
[381013719,1755943852725,-400.0,0.00013698,2]
[381013720,1755943852739,-400.0,0.00013698,2]
[381013721,1755943852752,-922.75,0.00013698,2]
[381013722,1755943852765,-449.24,0.00013698,2]
[381013723,1755943852779,-479.45,0.00013698,2]
[381013724,1755943852792,-400.0,0.00013698,2]
[381013725,1755943852805,-400.0,0.00013698,2]
[381013726,1755943852820,-925.04,0.00013698,2]
[381013727,1755943852835,-1123.95,0.00013698,2]
[381013728,1755943852848,-400.0,0.00013698,2]
[381013729,1755943852861,-422.39,0.00013698,2]
[381013730,1755943852874,-781.0,0.00013698,2]
[381013731,1755943852888,-423.68,0.00013698,2]
[381013732,1755943852901,-400.0,0.00013698,2]
[381013733,1755943852917,-552.292089,0.00013698,2]
[381013734,1755943852930,-2539.77,0.00013698,2]
[381013735,1755943852958,-552.292089,0.00013698,2]
[381013736,1755943852974,-552.292089,0.00013698,2]
[381013737,1755943852990,-793.93,0.00013698,2]
[381013738,1755943853006,-552.292089,0.00013698,2]
[381013739,1755943853022,-552.292089,0.00013698,2]
[381013740,1755943853037,-400.0,0.00013698,2]
[381013741,1755943853052,-552.292089,0.00013698,2]
[381013742,1755943853068,-400.0,0.00013698,2]
[381013743,1755943853082,-552.292089,0.00013698,2]
[381013744,1755943853098,-616.27,0.00013698,2]
[381013745,1755943853112,-552.292089,0.00013698,2]
[381013746,1755943853127,-552.292089,0.00013698,2]
[381013747,1755943853141,-421.71,0.00013698,2]
[381013748,1755943853155,-1491.75,0.00013698,2]
[381013749,1755943853170,-552.292089,0.00013698,2]
[381013750,1755943853185,-400.0,0.00013698,2]
[381013751,1755943853199,-711.64,0.00013698,2]
[381013752,1755943853212,-552.292089,0.00013698,2]
[381013753,1755943853228,-400.0,0.00013698,2]
[381013754,1755943853240,-552.292089,0.00013698,2]
[381013755,1755943853253,-400.0,0.00013698,2]
[381013756,1755943853267,-548.7,0.00013698,2]
[381013757,1755943853280,-633.61,0.00013698,2]
[381013758,1755943853295,-585.06,0.00013698,2]
[381013759,1755943853307,-400.0,0.00013698,2]
[381013760,1755943853320,-151.0,0.00013698,2]
[381013761,1755943853333,-400.0,0.00013698,2]
[381013762,1755943853346,-1020.73,0.00013698,2]
[381013763,1755943853359,-400.0,0.00013698,2]
[381013764,1755943853373,-400.0,0.00013698,2]
[381013765,1755943853385,-1000.0,0.00013698,2]
[381013766,1755943853397,-400.0,0.00013698,2]
[381013767,1755943853412,-713.89,0.00013698,2]
[381013768,1755943853425,-400.0,0.00013698,2]
[381013769,1755943853438,-647.98,0.00013698,2]
[381013770,1755943853450,-473.94,0.00013698,2]
[381013771,1755943853463,-603.17,0.00013698,2]
[381013772,1755943853475,-1171.93,0.00013698,2]
[381013773,1755943853487,-787.63,0.00013698,2]
[381013774,1755943853499,-769.49,0.00013698,2]
[381013775,1755943853512,-889.81,0.00013698,2]
[381013776,1755943853524,-1363.52,0.00013698,2]
[381013777,1755943853536,-1674.72,0.00013698,2]
[381013778,1755943853549,-400.0,0.00013698,2]
[381013779,1755943853561,-400.0,0.00013698,2]
[381013780,1755943853574,-540.77,0.00013698,2]
[381013781,1755943853586,-1135.13,0.00013698,2]
[381013782,1755943853598,-400.0,0.00013698,2]
[381013783,1755943853610,-400.0,0.00013698,2]
[381013784,1755943853622,-849.73,0.00013698,2]
[381013785,1755943853635,-400.0,0.00013698,2]
[381013786,1755943853647,-466.51,0.00013698,2]
[381013787,1755943853661,-400.0,0.00013698,2]
[381013788,1755943853674,-401.86031723,0.00013698,2]
[381013789,1755943853686,-874.67,0.00013698,2]
[381013790,1755943853698,-2460.55,0.00013698,2]
[381013791,1755943853711,-400.0,0.00013698,2]
[381013792,1755943853724,-420.94,0.00013698,2]
[381013793,1755943853736,-1021.62,0.00013698,2]
[381013794,1755943853749,-978.83,0.00013698,2]
[381013795,1755943853762,-1853.73,0.00013698,2]
[381013796,1755943853774,-1340.25,0.00013698,2]
[381013797,1755943853787,-400.0,0.00013698,2]
[381013798,1755943853799,-400.0,0.00013698,2]
[381013799,1755943853811,-853.87,0.00013698,2]
[381013800,1755943853824,-1652.00221467,0.00013698,2]
[381013801,1755944167587,-1200.0,0.00012343,2]
[381013802,1755944167613,-300.0,0.00012343,2]
[381013803,1755944167640,-212.05,0.00012343,2]